bitfinex/quotes_ETHUSD_20250730
["timestamp","ask_amount","ask_price","bid_price","bid_amount"]
[1753901280684,0.9675,3781.7,3780.0,0.9774]
[1753901280872,0.04,3781.9,3780.2,12.26794569]
[1753901281074,0.04,3781.9,3780.0,0.9774]
[1753901281075,30.0,3781.8,3780.0,0.9774]
[1753901281381,30.0,3781.6,3780.1,5.086]
[1753901281564,30.0,3781.6,3780.0,0.9774]
[1753901281763,30.0,3781.4,3780.0,0.9774]
[1753901281996,3.0,3781.4,3780.1,5.085]
[1753901282199,3.0,3781.7,3780.1,5.085]
[1753901282419,3.0,3781.7,3780.0,0.9774]
[1753901282420,30.0,3781.4,3780.0,0.9774]
[1753901282567,3.0,3781.1,3780.0,5.081]
[1753901282875,30.0,3781.7,3780.1,3.9171]
[1753901283093,0.04,3781.9,3780.2,7.17694569]
[1753901283410,30.03305304,3781.8,3780.3,5.082]
[1753901283591,3.0,3781.4,3780.0,5.082]
[1753901283782,0.913,3781.6,3780.0,5.082]
[1753901283783,30.0,3781.1,3780.0,5.082]
[1753901284101,30.0,3780.9,3780.0,5.082]
[1753901284266,3.0,3781.2,3780.0,5.082]
[1753901284462,30.0,3780.9,3780.0,5.082]
[1753901284658,30.0,3780.7,3780.0,5.082]
[1753901284896,0.00519424,3780.6,3780.0,5.082]
[1753901285761,0.00519424,3780.6,3779.6,6.354]
[1753901285961,0.00519424,3780.6,3779.4,0.001]
[1753901286186,1.0115,3780.5,3779.4,0.001]
[1753901286403,0.00519424,3780.4,3779.4,0.001]
[1753901286604,3.0,3780.2,3779.4,0.001]
[1753901286767,4.0117,3780.0,3779.4,0.001]
[1753901286967,3.0,3779.7,3779.4,0.001]
[1753901287169,33.0,3779.5,3779.4,0.001]
[1753901287578,3.132,3779.5,3779.4,0.001]
[1753901287785,33.132,3779.5,3779.4,0.001]
[1753901288302,36.44286593,3779.5,3779.4,0.001]
[1753901288501,34.0962,3779.5,3779.4,0.001]
[1753901289205,4.5142,3779.5,3779.4,0.001]
[1753901289367,33.99727315,3779.5,3779.4,0.001]
[1753901289566,37.16005262,3779.5,3779.4,0.001]
[1753901289770,34.5142,3779.5,3779.4,0.001]
[1753901289992,34.5142,3779.5,3778.7,0.25]
[1753901289993,0.55,3779.2,3778.7,0.25]
[1753901290194,34.5479,3778.8,3778.7,0.25]
[1753901290371,33.9979,3778.8,3778.7,0.25]
[1753901290772,34.5479,3778.8,3778.7,0.25]
[1753901290966,33.9979,3778.8,3778.7,0.25]
[1753901291375,33.9979,3778.8,3777.6,0.00581354]
[1753901291376,30.0,3778.4,3777.6,0.00581354]
[1753901291569,0.00519424,3778.3,3777.6,0.00581354]
[1753901291886,0.00519424,3778.3,3777.6,5.20281354]
[1753901292074,0.00519424,3778.3,3777.7,5.194]
[1753901292075,0.03308453,3778.2,3777.7,5.194]
[1753901292272,30.0,3777.9,3777.6,0.00581354]
[1753901292475,30.0,3777.7,3777.6,0.00581354]
[1753901292707,0.00519424,3777.8,3777.6,0.00581354]
[1753901293482,0.00519424,3777.8,3777.6,2.6529384]
[1753901293715,0.00519424,3777.8,3777.6,0.00581354]
[1753901293902,30.0,3777.7,3777.6,0.00581354]
[1753901294211,0.00519424,3777.8,3777.6,0.00581354]
[1753901294576,30.03308891,3777.7,3777.6,0.00581354]
[1753901294776,31.0327,3777.7,3777.6,0.00581354]
[1753901295698,34.60192339,3777.7,3777.6,0.00581354]
[1753901297384,35.15192339,3777.7,3777.6,0.00581354]
[1753901297816,34.60192339,3777.7,3777.6,0.00581354]
[1753901298876,12.96203671,3777.7,3777.6,0.00581354]
[1753901299212,43.09403671,3777.7,3777.6,0.00581354]
[1753901299611,45.87203671,3777.7,3777.6,0.00581354]
[1753901299816,43.89038371,3777.7,3777.6,0.00581354]
[1753901300321,30.0,3776.6,3775.7,0.0008]
[1753901300524,0.00519424,3776.5,3775.7,0.0008]
[1753901300726,30.0,3776.4,3775.7,0.0008]
[1753901300926,0.00519424,3776.3,3775.7,0.0008]
[1753901301527,0.20478754,3776.3,3775.7,0.0008]
[1753901301732,30.0,3776.1,3775.7,0.0008]
[1753901301943,30.0,3775.9,3775.7,0.0008]
[1753901302292,0.00519424,3776.0,3775.7,2.64930883]
[1753901302516,0.00519424,3776.0,3775.7,0.0008]
[1753901303230,0.00519424,3776.0,3775.7,5.1858]
[1753901303435,0.00519424,3776.0,3775.7,0.0008]
[1753901304525,0.00519424,3776.0,3775.9,2.64837522]
[1753901305155,0.00519424,3776.0,3775.8,2.64842324]
[1753901305356,0.00519424,3776.0,3775.8,5.169]
[1753901305521,0.00519424,3776.0,3775.7,5.1698]
[1753901305721,0.00519424,3776.0,3775.8,5.166]
[1753901305918,0.00519424,3776.0,3775.7,0.0008]
[1753901306414,30.0,3775.9,3775.7,0.0008]
[1753901306614,1.3779231,3775.9,3775.7,0.0008]
[1753901306859,30.0,3775.9,3775.7,0.0008]
[1753901307215,33.0,3775.8,3775.7,0.0008]
[1753901307819,30.0,3775.7,3775.1,1.03474375]
[1753901308119,30.0,3775.6,3775.1,1.03474375]
[1753901308319,30.0,3775.4,3775.1,1.03474375]
[1753901308536,0.00519424,3775.3,3775.1,1.03474375]
[1753901309564,1.0374,3775.2,3775.1,1.03474375]
[1753901309767,34.44165942,3775.2,3775.1,1.03474375]
[1753901310186,33.40425942,3775.2,3775.1,1.03474375]
[1753901310373,34.56725942,3775.2,3775.1,1.03474375]
[1753901310711,31.0302,3775.0,3774.1,0.04]
[1753901310855,30.0,3774.7,3774.1,0.04]
[1753901311192,0.1328,3774.2,3774.1,0.04]
[1753901311350,0.00519424,3774.6,3774.1,0.04]
[1753901312792,0.00519424,3774.6,3774.2,1.0014]
[1753901312996,0.00519424,3774.6,3774.5,2.64935753]
[1753901313155,0.19655295,3776.4,3775.8,2.64841796]
[1753901313365,0.19655295,3776.4,3775.3,2.64878078]
[1753901313666,0.03310118,3776.3,3775.4,5.148]
[1753901314066,30.0,3776.7,3775.4,7.7956711]
[1753901314398,30.0,3776.8,3775.4,5.147]
[1753901314702,30.0,3776.6,3774.9,1.0353]
[1753901314899,30.0,3776.4,3774.9,6.1783]
[1753901315202,30.0,3776.2,3774.9,1.0353]
[1753901315393,0.03310293,3776.1,3774.9,1.0353]
[1753901315598,3.0,3776.4,3774.9,1.0353]
[1753901315773,30.0,3776.2,3774.9,1.0353]
[1753901316191,0.04,3776.9,3774.9,1.0353]
[1753901316395,30.0,3776.8,3774.9,1.0353]
[1753901316571,30.0,3776.8,3775.3,2.64874355]
[1753901316900,30.0,3776.6,3775.0,2.64894774]
[1753901317102,30.0,3776.4,3774.9,1.0353]
[1753901317266,30.0,3776.8,3774.9,6.1593]
[1753901317464,30.0,3776.8,3775.4,2.64866343]
[1753901317770,30.0,3776.8,3775.4,2.6487102]
[1753901317970,30.0,3776.8,3774.9,6.1593]
[1753901318175,0.04,3776.9,3774.9,6.1593]
[1753901318486,0.0330968,3776.8,3774.9,6.1593]
[1753901318689,0.0330968,3776.8,3775.4,2.6486571]
[1753901318994,0.04,3776.9,3775.6,1.0646]
[1753901319522,0.04,3776.9,3775.7,5.108]
[1753901319802,0.04,3776.9,3775.6,1.0646]
[1753901319803,0.0330968,3776.8,3775.6,1.0646]
[1753901319964,0.0330968,3776.8,3775.8,5.105]
[1753901320362,0.0330968,3776.8,3775.6,1.0646]
[1753901320363,30.0,3776.7,3775.6,5.098]
[1753901320563,30.0,3776.6,3775.6,5.098]
[1753901321231,30.0,3776.6,3775.2,5.094]
[1753901321527,2.57026461,3776.7,3774.9,6.1493]
[1753901321528,0.1328,3775.0,3774.9,6.1493]
[1753901321707,0.1328,3775.0,3774.9,1.0553]
[1753901322076,0.1328,3775.0,3774.5,1.1021]
[1753901322277,0.1328,3774.7,3774.6,5.09]
[1753901322479,5.088,3776.8,3774.6,5.09]
[1753901322480,3.0,3776.7,3774.6,5.09]
[1753901322715,0.1328,3775.2,3774.8,2.64910426]
[1753901323014,0.1328,3775.2,3774.6,0.1328]
[1753901323210,0.1328,3775.4,3774.9,0.1328]
[1753901323619,0.1328,3775.4,3775.0,2.64900662]
[1753901323984,0.1328,3775.4,3774.9,0.1328]
[1753901324180,1.0902968,3776.8,3775.0,5.075]
[1753901324385,0.1328,3775.2,3775.0,5.075]
[1753901324717,0.1328,3775.2,3774.5,1.1021]
[1753901324718,0.1328,3775.2,3775.1,5.073]
[1753901324917,30.0,3776.7,3775.1,5.073]
[1753901325097,0.1328,3775.2,3775.1,5.073]
[1753901325292,1.0572,3776.8,3775.1,5.073]
[1753901325293,30.0,3776.7,3775.1,5.073]
[1753901325493,0.1328,3775.4,3775.1,5.073]
[1753901325909,1.0572,3776.8,3775.2,1.0995]
[1753901326223,0.1328,3775.8,3775.2,1.2323]
[1753901326826,0.1328,3775.5,3775.3,5.059]
[1753901327006,0.1328,3775.5,3775.2,1.0995]
[1753901327325,0.03309943,3776.5,3775.3,5.055]
[1753901327621,30.0,3776.7,3775.3,5.055]
[1753901327916,0.1328,3775.4,3775.3,5.055]
[1753901328121,30.0,3776.7,3775.3,7.70378527]
[1753901328329,0.1328,3775.6,3775.3,5.055]
[1753901328631,0.1328,3775.6,3774.6,2.65023376]
[1753901328632,0.1328,3775.4,3774.9,5.046]
[1753901328832,0.1328,3775.0,3774.9,5.046]
[1753901329587,0.1328,3775.0,3774.7,1.0477]
[1753901329787,32.64815976,3776.3,3774.7,1.0477]
[1753901330149,0.1328,3774.8,3774.6,0.001]
[1753901330437,0.03311521,3774.7,3774.6,0.001]
[1753901331026,0.1328,3774.8,3774.6,0.001]
[1753901331790,0.1328,3774.8,3774.7,1.0921]
[1753901331987,30.0,3776.2,3774.7,3.74131715]
[1753901332191,0.1328,3774.9,3774.8,7.67714399]
[1753901332891,0.1328,3774.9,3774.8,5.028]
[1753901333205,0.1328,3774.9,3774.7,6.1131]
[1753901333390,1.0734,3776.3,3774.7,6.1131]
[1753901333590,0.1328,3775.3,3775.1,6.13312337]
[1753901333925,0.1328,3775.5,3775.2,2.64885002]
[1753901334238,0.1328,3775.5,3775.3,5.018]
[1753901334390,1.0506,3776.8,3775.3,5.018]
[1753901334590,0.1328,3775.6,3775.3,5.018]
[1753901334854,1.0506,3776.8,3775.3,5.018]
[1753901334855,1.0506,3776.8,3775.3,7.66674765]
[1753901335032,0.1328,3775.8,3775.3,5.018]
[1753901335236,0.1328,3775.8,3775.5,2.64859707]
[1753901335552,0.1328,3775.8,3775.3,5.018]
[1753901335708,30.0,3776.6,3775.3,5.018]
[1753901335926,0.1328,3775.4,3774.8,0.1328]
[1753901336114,30.0,3776.4,3774.9,5.003]
[1753901336314,30.0,3776.7,3774.7,1.0921]
[1753901336515,0.1328,3774.9,3774.1,0.04]
[1753901336824,0.1328,3774.7,3774.1,0.04]
[1753901337216,30.1328,3774.7,3774.1,0.04]
[1753901337413,33.73846461,3774.7,3774.1,0.04]
[1753901337656,30.1328,3774.7,3774.1,0.04]
[1753901337952,30.0,3774.8,3774.1,0.04]
[1753901338152,0.03311521,3774.7,3774.1,0.04]
[1753901338358,33.03311521,3774.7,3774.1,0.04]
[1753901338559,36.64756461,3774.7,3774.1,0.04]
[1753901340135,31.0773,3774.7,3774.1,0.04]
[1753901340551,34.0773,3774.7,3774.1,0.04]
[1753901340884,36.72651715,3774.7,3774.1,0.04]
[1753901341042,3.0,3774.3,3773.1,0.0461308]
[1753901341241,3.0,3773.9,3771.7,1.054]
[1753901341442,33.0,3773.7,3771.7,1.054]
[1753901341689,30.0,3773.4,3771.5,4.979]
[1753901341847,30.0,3773.2,3771.5,0.004]
[1753901342207,3.0,3772.7,3771.5,0.004]
[1753901342363,30.03313364,3772.6,3771.5,2.65545701]
[1753901342567,0.03313452,3772.5,3771.8,2.65125243]
[1753901342762,1.0299,3772.9,3771.8,4.972]
[1753901342963,30.0,3772.8,3771.9,1.0388]
[1753901343176,30.0,3773.4,3772.2,2.6509043]
[1753901343347,30.0,3773.4,3772.1,2.65098132]
[1753901343559,30.0331275,3773.3,3771.5,0.004]
[1753901343755,3.0,3773.1,3771.5,0.004]
[1753901343970,30.0,3772.7,3771.5,0.004]
[1753901344168,30.0,3772.8,3771.5,0.004]
[1753901344596,30.0,3772.6,3771.5,0.004]
[1753901344767,1.0479,3772.9,3771.6,6.13312337]
[1753901344956,30.0,3772.8,3771.6,6.13312337]
[1753901345157,1.1133,3773.6,3771.7,4.994]
[1753901345480,30.0,3773.5,3771.7,11.12712337]
[1753901345684,1.1095,3774.8,3772.3,6.13312337]
[1753901345889,30.0,3774.7,3773.4,2.65006187]
[1753901346204,30.0,3774.7,3773.1,4.993]
[1753901346417,30.0,3774.7,3773.8,2.64982144]
[1753901346718,1.1095,3774.8,3773.8,2.64983836]
[1753901346916,1.1095,3774.8,3773.1,4.993]
[1753901346917,30.0,3774.6,3773.1,4.993]
[1753901347223,0.20018576,3775.2,3772.4,4.989]
[1753901347224,4.0288,3774.1,3772.4,4.989]
[1753901347497,30.0,3773.9,3772.4,4.989]
[1753901347718,0.1328,3772.5,3772.4,4.989]
[1753901348723,0.1328,3772.5,3772.2,1.0345]
[1753901348992,0.1328,3772.3,3772.2,1.0345]
[1753901349409,0.1328,3772.3,3772.0,0.001]
[1753901349694,1.0605,3774.8,3772.2,1.5963]
[1753901349858,0.1328,3773.3,3773.2,2.65020739]
[1753901350059,0.1328,3773.3,3772.7,0.1328]
[1753901350397,0.1328,3772.9,3772.8,4.985]
[1753901350602,0.04,3774.9,3772.3,1.1074]
[1753901350603,1.0275,3773.8,3772.5,4.981]
[1753901350764,0.1328,3772.6,3772.0,0.001]
[1753901350967,3.0,3773.5,3772.0,0.001]
[1753901351186,30.0,3773.2,3772.0,0.001]
[1753901351386,0.1328,3772.1,3772.0,0.001]
[1753901351605,31.2101,3772.1,3772.0,0.001]
[1753901351908,1.2101,3772.1,3772.0,0.001]
[1753901352087,0.1328,3772.1,3772.0,0.001]
[1753901352805,32.01642237,3772.1,3772.0,0.001]
[1753901352985,36.06678434,3772.1,3772.0,0.001]
[1753901353414,34.2163,3772.1,3772.0,0.001]
[1753901355198,36.86734318,3772.1,3772.0,0.001]
[1753901355500,34.2163,3772.1,3772.0,0.001]
[1753901355898,37.41734318,3772.1,3772.0,0.001]
[1753901356205,37.41734318,3772.1,3767.9,0.0026]
[1753901356206,3.328,3769.8,3767.9,0.0026]
[1753901356403,3.0,3770.1,3767.9,0.0026]
[1753901356404,30.0,3769.3,3767.9,0.0026]
[1753901356561,0.1328,3768.2,3767.9,0.0026]
[1753901356759,30.1328,3768.2,3767.9,0.0026]
[1753901357381,0.1328,3768.2,3767.9,0.0026]
[1753901360415,0.333154,3768.2,3767.9,0.0026]
[1753901360612,0.1328,3768.2,3767.9,0.0026]
[1753901361903,0.1328,3768.2,3767.9,2.65653931]
[1753901362215,1.0262,3769.2,3767.9,2.65653931]
[1753901362216,0.797909,3769.0,3767.9,7.35291787]
[1753901362382,0.797909,3769.0,3767.9,9.87411323]
[1753901362579,0.1328,3768.2,3767.9,7.22011787]
[1753901362976,0.1328,3768.2,3768.1,5.418]
[1753901363383,0.1328,3768.2,3768.1,5.411]
[1753901363592,0.1328,3768.2,3768.1,0.04]
[1753901364119,0.1328,3768.2,3768.1,5.407]
[1753901364281,0.1328,3768.2,3768.1,5.402]
[1753901364482,0.1328,3768.2,3768.1,0.04]
[1753901365932,1.0276,3769.4,3768.1,0.04]
[1753901366281,30.0,3769.3,3768.1,0.04]
[1753901366586,2.60342814,3769.2,3768.1,0.04]
[1753901366918,3.0,3769.0,3768.1,0.04]
[1753901367117,30.0,3769.1,3768.1,0.04]
[1753901367118,3.0,3769.1,3768.1,0.04]
[1753901367420,30.0,3768.8,3768.1,0.04]
[1753901367626,30.03316793,3768.7,3768.1,0.04]
[1753901367784,30.0,3768.7,3768.1,0.04]
[1753901368116,2.57026461,3768.6,3768.1,0.04]
[1753901368413,30.0,3768.7,3768.1,0.04]
[1753901369019,30.0,3769.4,3768.2,1.0608]
[1753901369380,8.96896968,3769.3,3768.2,1.0608]
[1753901370009,8.96896968,3769.3,3768.1,0.04]
[1753901370010,30.0,3769.1,3768.1,0.04]
[1753901370207,8.96896968,3769.3,3768.1,0.04]
[1753901370535,8.96896968,3769.3,3768.1,6.19221932]
[1753901370818,8.96896968,3769.3,3768.7,6.15221932]
[1753901372211,8.96896968,3769.3,3768.6,5.319]
[1753901372413,8.96896968,3769.3,3768.7,6.15221932]
[1753901373487,8.96896968,3769.3,3768.8,5.301]
[1753901373712,8.96896968,3769.3,3768.2,1.0709]
[1753901373911,8.96896968,3769.3,3768.3,5.297]
[1753901374116,8.96896968,3769.3,3768.2,1.0709]
[1753901374117,30.0,3769.1,3768.1,0.04]
[1753901374849,0.03316529,3769.0,3768.1,0.04]
[1753901375038,1.0808,3769.2,3768.1,0.04]
[1753901375039,4.315032,3769.8,3768.2,1.0826]
[1753901375346,30.0,3769.7,3768.2,7.23481932]
[1753901375553,0.03316001,3769.6,3768.2,1.0826]
[1753901375709,3.0,3769.4,3768.2,1.0826]
[1753901375904,4.315032,3769.8,3768.1,5.329]
[1753901375905,0.1328,3768.3,3768.1,5.329]
[1753901376551,0.1328,3768.3,3768.1,0.04]
[1753901377009,0.1328,3768.3,3768.1,5.324]
[1753901377411,0.1328,3768.3,3768.1,0.04]
[1753901377611,0.03317233,3768.2,3768.1,0.04]
[1753901378020,0.1328,3768.3,3768.1,0.04]
[1753901378227,1.0,3768.2,3768.1,0.04]
[1753901378422,1.0,3768.2,3768.1,7.28331932]
[1753901378621,1.0577,3770.6,3768.4,2.6536461]
[1753901378826,0.1328,3768.8,3768.7,6.15221932]
[1753901379237,0.1328,3769.1,3768.7,6.15221932]
[1753901379428,0.1328,3769.1,3768.8,1.1121]
[1753901379638,1.855359,3770.6,3768.8,1.1121]
[1753901379839,0.04,3771.9,3768.8,1.1121]
[1753901379840,0.1328,3769.4,3768.9,2.78608148]
[1753901380148,0.1328,3769.4,3768.9,0.1328]
[1753901380453,0.1328,3769.1,3768.8,1.1121]
[1753901380627,30.0,3770.5,3768.8,1.1121]
[1753901380827,0.1328,3768.9,3768.8,1.1121]
[1753901381011,3.0,3770.5,3768.8,1.1121]
[1753901381218,0.797526,3770.7,3769.4,6.15221932]
[1753901381425,30.0,3770.4,3769.5,5.253]
[1753901381722,30.0,3770.4,3768.8,1.2449]
[1753901381723,0.1328,3769.6,3768.9,5.253]
[1753901381936,0.1328,3769.1,3768.9,5.253]
[1753901382965,0.1328,3769.1,3768.4,6.2591]
[1753901383123,1.067,3770.0,3768.4,6.2591]
[1753901383124,3.0,3769.8,3768.4,6.2591]
[1753901383329,0.1328,3768.5,3768.4,6.2591]
[1753901383835,0.1328,3768.5,3768.4,6.2561]
[1753901384668,0.1328,3768.5,3768.4,5.237]
[1753901385259,0.1328,3768.5,3768.1,0.04]
[1753901385559,0.1328,3768.9,3768.3,0.1328]
[1753901385762,0.1328,3768.7,3768.2,5.221]
[1753901385965,0.1328,3768.7,3768.3,2.65371653]
[1753901386167,0.1328,3768.7,3768.5,6.15221932]
[1753901386373,0.1328,3769.1,3768.6,1.1931]
[1753901386573,1.0492,3770.0,3768.6,1.0603]
[1753901386792,1.0492,3770.0,3768.7,5.213]
[1753901386937,1.0544,3770.6,3768.7,5.213]
[1753901387133,30.0,3770.5,3769.1,6.15221932]
[1753901387478,1.0544,3770.6,3769.1,6.15221932]
[1753901387690,0.04,3770.9,3769.7,6.15221932]
[1753901387842,0.04,3770.9,3769.8,7.85964911]
[1753901388037,0.04,3770.9,3769.8,5.207]
[1753901389346,0.04,3770.9,3769.7,6.15221932]
[1753901389557,0.04,3770.9,3769.8,5.199]
[1753901389942,0.04,3770.9,3768.6,3.2034926]
[1753901389943,30.0,3770.6,3769.9,5.191]
[1753901390173,3.0,3770.4,3769.9,5.191]
[1753901390397,0.04,3770.9,3769.9,5.191]
[1753901390554,0.04,3770.9,3770.1,6.15221932]
[1753901390757,0.04,3770.9,3769.6,1.1118]
[1753901391098,0.04,3770.9,3769.7,5.19]
[1753901391241,0.04,3770.9,3769.8,5.185]
[1753901391449,0.04,3770.9,3769.9,5.185]
[1753901392078,0.04,3770.9,3770.0,5.185]
[1753901392887,0.04,3770.9,3770.1,2.65238832]
[1753901393042,0.041,3770.9,3770.1,2.65238832]
[1753901393242,0.041,3770.9,3770.2,2.65234584]
[1753901393467,0.041,3770.9,3770.0,5.185]
[1753901393677,0.041,3770.9,3770.1,2.65238804]
[1753901393858,0.041,3770.9,3770.0,5.185]
[1753901395584,0.041,3770.9,3769.6,1.1118]
[1753901395895,1.16104946,3770.8,3769.7,5.147]
[1753901396059,3.0,3770.6,3769.2,1.0289]
[1753901396261,0.07414858,3770.9,3769.3,5.145]
[1753901396262,3.0,3770.2,3769.3,5.145]
[1753901396506,3.0,3769.7,3768.3,1.0524]
[1753901396685,0.1328,3768.7,3768.6,5.147]
[1753901397471,0.1328,3768.7,3768.6,5.144]
[1753901397706,0.1328,3768.7,3768.1,0.04]
[1753901397911,0.1328,3768.7,3768.6,5.138]
[1753901398197,0.1328,3768.7,3768.6,5.135]
[1753901398764,0.1328,3768.7,3768.6,5.132]
[1753901399092,0.1328,3768.7,3768.6,5.13]
[1753901399283,0.1328,3768.7,3768.1,0.04]
[1753901399484,0.1328,3768.7,3768.6,5.128]
[1753901399797,0.1328,3768.7,3768.6,5.126]
[1753901400095,0.1328,3768.7,3768.1,0.04]
[1753901400096,33.0,3768.5,3768.1,0.04]
[1753901400255,33.0,3768.2,3768.1,5.163]
[1753901400619,33.0,3768.2,3768.1,0.04]
[1753901400761,36.74298695,3768.2,3768.1,0.04]
[1753901401112,34.0892,3768.2,3768.1,0.04]
[1753901401261,36.74298695,3768.2,3768.1,0.04]
[1753901401468,36.65946461,3768.2,3768.1,0.04]
[1753901401700,34.0892,3768.2,3768.1,0.04]
[1753901401992,4.0892,3768.2,3768.1,0.04]
[1753901402372,36.88258228,3768.2,3768.1,0.04]
[1753901402557,36.84940995,3768.2,3768.1,0.04]
[1753901402757,36.84940995,3768.2,3767.8,0.001]
[1753901402758,33.75162781,3768.0,3767.8,0.001]
[1753901403111,36.66796461,3768.0,3767.8,0.001]
[1753901403493,39.32189242,3768.0,3767.8,0.001]
[1753901403700,36.66796461,3768.0,3767.8,0.001]
[1753901403882,4.0977,3768.0,3767.8,0.001]
[1753901404092,2.65282402,3769.6,3767.8,0.001]
[1753901404093,1.1004,3770.0,3768.0,1.1084]
[1753901404319,1.1004,3771.2,3769.8,1.1084]
[1753901404497,0.001,3771.3,3770.5,6.15221932]
[1753901404819,1.1004,3772.0,3769.9,6.378]
[1753901404820,0.797509,3771.5,3769.9,6.378]
[1753901405122,30.0,3771.8,3770.0,5.295]
[1753901405279,0.837433,3771.9,3770.1,2.65244953]
[1753901405631,0.837433,3771.9,3770.0,5.161]
[1753901405632,30.0,3771.8,3770.0,5.161]
[1753901405785,30.0,3771.8,3770.1,5.162]
[1753901406421,0.04,3771.9,3770.2,1.0933]
[1753901406792,0.04,3771.9,3770.3,2.6522955]
[1753901407106,0.04,3771.9,3770.4,5.161]
[1753901407308,0.04,3771.9,3770.2,1.0933]
[1753901407525,30.0,3771.7,3770.3,5.156]
[1753901407722,30.0,3771.5,3770.4,5.155]
[1753901408020,0.04,3771.9,3770.5,5.154]
[1753901408383,0.04,3771.9,3770.8,2.65194237]
[1753901408618,0.04,3771.9,3770.5,5.154]
[1753901408801,0.04,3771.9,3770.7,2.65202747]
[1753901409124,1.106,3771.7,3769.6,1.0933]
[1753901409319,30.0,3771.4,3769.7,5.15]
[1753901409522,31.106,3771.0,3769.0,6.377]
[1753901409815,31.0764,3770.6,3769.0,6.377]
[1753901409985,30.0,3770.1,3769.0,6.377]
[1753901410185,3.0,3769.3,3767.9,0.0026]
[1753901410384,30.0,3769.0,3767.9,0.0026]
[1753901410711,2.65449139,3767.2,3767.0,0.03]
[1753901410906,30.0,3768.1,3767.0,0.03]
[1753901410907,3.0,3767.4,3767.0,0.03]
[1753901411092,34.0449,3767.2,3767.0,0.03]
[1753901412080,0.106462,3767.3,3767.0,0.03]
[1753901412492,0.106462,3767.3,3767.2,5.157]
[1753901413091,0.106462,3767.3,3767.0,0.03]
[1753901413688,0.106462,3767.3,3767.2,5.15]
[1753901413918,0.106462,3767.3,3767.1,5.191]
[1753901414190,30.0,3768.0,3767.1,5.191]
[1753901414391,30.0,3768.2,3767.1,5.191]
[1753901414706,3.0,3767.9,3767.1,5.193]
[1753901415021,30.0,3767.8,3767.1,0.042]
[1753901415223,3.0,3768.1,3767.2,5.144]
[1753901415522,3.0,3768.1,3767.1,0.042]
[1753901415523,30.0,3768.0,3767.3,5.143]
[1753901416022,30.0,3767.8,3767.4,5.141]
[1753901416226,30.0,3768.2,3767.4,5.141]
[1753901416594,3.0,3768.5,3767.5,5.138]
[1753901416789,3.0,3768.3,3767.6,5.138]
[1753901417104,30.0,3767.8,3767.3,5.139]
[1753901417288,30.0,3767.6,3767.3,5.139]
[1753901417488,30.0,3767.6,3767.1,5.18]
[1753901417925,33.0,3767.3,3767.2,5.136]
[1753901418434,30.0,3767.9,3767.2,5.136]
[1753901418595,3.0,3767.6,3767.2,5.139]
[1753901418797,30.0,3767.3,3767.1,0.042]
[1753901419005,2.65442159,3767.3,3767.1,5.179]
[1753901419346,34.0929,3767.2,3767.1,0.042]
[1753901420119,34.2257,3767.2,3767.1,0.042]
[1753901420439,39.450456,3767.2,3767.1,0.042]
[1753901420638,4.099,3765.2,3765.1,0.04]
[1753901420855,4.2318,3765.2,3765.1,0.04]
[1753901420995,34.2318,3765.2,3765.1,0.04]
[1753901421200,34.52492708,3765.2,3765.1,0.04]
[1753901421725,4.2318,3765.2,3765.1,0.04]
[1753901422140,0.1328,3765.2,3765.1,0.04]
[1753901424122,8.92896968,3765.1,3764.9,0.004]
[1753901425043,8.92896968,3765.1,3765.0,6.383656]
[1753901425544,8.92896968,3765.1,3765.0,11.531656]
[1753901425753,9.06176968,3765.1,3765.0,11.531656]
[1753901426050,9.06176968,3765.1,3765.0,6.383656]
[1753901426262,8.92896968,3765.1,3765.0,11.529656]
[1753901426622,8.92896968,3765.1,3765.0,11.525656]
[1753901426845,8.92896968,3765.1,3765.0,6.383656]
[1753901427076,8.92896968,3765.1,3765.0,11.522656]
[1753901428352,8.92896968,3765.1,3765.0,11.513656]
[1753901428718,8.92896968,3765.1,3765.0,6.383656]
[1753901428948,0.04,3766.9,3765.0,11.511656]
[1753901429119,0.56946218,3766.8,3765.0,11.511656]
[1753901429319,3.0,3766.7,3765.0,11.511656]
[1753901429555,30.0,3766.8,3765.0,11.511656]
[1753901430173,3.0,3766.3,3765.0,6.383656]
[1753901430333,3.0,3766.3,3765.1,5.122]
[1753901430334,1.104,3766.2,3765.1,5.122]
[1753901430522,30.0,3765.7,3765.1,5.122]
[1753901430729,0.03319524,3765.6,3765.0,6.383656]
[1753901430960,0.03319524,3765.6,3765.1,5.117]
[1753901431126,3.0,3765.5,3765.0,6.383656]
[1753901431323,0.41371891,3766.1,3765.1,5.112]
[1753901431324,30.0,3766.0,3765.1,5.112]
[1753901431564,5.57026461,3765.9,3765.1,5.112]
[1753901431768,3.0,3765.9,3765.1,5.112]
[1753901432086,3.0,3765.2,3765.1,5.108]
[1753901432374,3.0,3765.7,3765.1,5.098]